[Event "Titled Tuesday Blitz November 07 Early 2023"]
[White "Grossboss19"]
[Black "Kanyamarala, Tarun"]
[BlackFideId "45004714"]
[WhiteElo "2520"]
[BlackElo "2466"]
[Result "1/2-1/2"]
[Round "11"]
[TimeControl "180+1"]
[Date "2023.11.07"]
[WhiteClock "0:00:15"]
[BlackClock "0:00:05"]
[Board "54"]

1. d4 {[%clk 0:02:53]}  Nf6 {[%clk 0:02:58]} 2. Nf3 {[%clk 0:02:52]}  d5 {[%clk 0:02:57]} 3. e3 {[%clk 0:02:53]}  c5 {[%clk 0:02:54]} 4. c4 {[%clk 0:02:48]}  e6 {[%clk 0:02:48]} 5. Nc3 {[%clk 0:02:48]}  Nc6 {[%clk 0:02:44]} 6. cxd5 {[%clk 0:02:48]}  Nxd5 {[%clk 0:02:40]} 7. Nxd5 {[%clk 0:02:47]}  exd5 {[%clk 0:02:22]} 8. Be2 {[%clk 0:02:46]}  Bd6 {[%clk 0:02:14]} 9. dxc5 {[%clk 0:02:46]}  Bxc5 {[%clk 0:02:14]} 10. O-O {[%clk 0:02:46]}  O-O {[%clk 0:02:13]} 11. Bd2 {[%clk 0:02:37]}  d4 {[%clk 0:02:08]} 12. exd4 {[%clk 0:02:35]}  Nxd4 {[%clk 0:02:08]} 13. Nxd4 {[%clk 0:02:35]}  Qxd4 {[%clk 0:02:02]} 14. Bc3 {[%clk 0:02:31]}  Qxd1 {[%clk 0:01:42]} 15. Rfxd1 {[%clk 0:02:30]}  Be6 {[%clk 0:01:35]} 16. Bf3 {[%clk 0:02:29]}  Rab8 {[%clk 0:01:20]} 17. Be5 {[%clk 0:02:24]}  Rbe8 {[%clk 0:01:19]} 18. Bxb7 {[%clk 0:02:05]}  Bxa2 {[%clk 0:01:05]} 19. Bxg7 {[%clk 0:01:49]}  Kxg7 {[%clk 0:01:01]} 20. Rxa2 {[%clk 0:01:49]}  Re2 {[%clk 0:01:00]} 21. Rf1 {[%clk 0:01:49]}  Rd8 {[%clk 0:00:58]} 22. Bf3 {[%clk 0:01:26]}  Rc2 {[%clk 0:00:45]} 23. h4 {[%clk 0:01:17]}  Rdd2 {[%clk 0:00:42]} 24. Kh2 {[%clk 0:01:15]}  Bxf2 {[%clk 0:00:37]} 25. Be4 {[%clk 0:01:02]}  Rxb2 {[%clk 0:00:31]} 26. Rxb2 {[%clk 0:01:03]}  Rxb2 {[%clk 0:00:32]} 27. Bd5 {[%clk 0:00:55]}  f6 {[%clk 0:00:27]} 28. h5 {[%clk 0:00:53]}  Kh6 {[%clk 0:00:23]} 29. Bf3 {[%clk 0:00:51]}  a5 {[%clk 0:00:19]} 30. Ra1 {[%clk 0:00:50]}  Bb6 {[%clk 0:00:18]} 31. Ra4 {[%clk 0:00:47]}  Rb4 {[%clk 0:00:16]} 32. Rxb4 {[%clk 0:00:42]}  axb4 {[%clk 0:00:16]} 33. Bd1 {[%clk 0:00:42]}  Kg5 {[%clk 0:00:11]} 34. Kg3 {[%clk 0:00:42]}  h6 {[%clk 0:00:10]} 35. Kf3 {[%clk 0:00:27]}  Kxh5 {[%clk 0:00:10]} 36. Kf4+ {[%clk 0:00:27]}  Kg6 {[%clk 0:00:10]} 37. Bc2+ {[%clk 0:00:26]}  Kg7 {[%clk 0:00:09]} 38. Kf5 {[%clk 0:00:26]}  Bd4 {[%clk 0:00:08]} 39. g4 {[%clk 0:00:25]}  Be3 {[%clk 0:00:08]} 40. Bb3 {[%clk 0:00:25]}  Bg5 {[%clk 0:00:07]} 41. Bc4 {[%clk 0:00:25]}  Kf8 {[%clk 0:00:07]} 42. Ke6 {[%clk 0:00:22]}  Ke8 {[%clk 0:00:07]} 43. Kd6 {[%clk 0:00:21]}  Kd8 {[%clk 0:00:06]} 44. Kc5 {[%clk 0:00:20]}  Bd2 {[%clk 0:00:05]} 45. Kd6 {[%clk 0:00:20]}  Kc8 {[%clk 0:00:05]} 46. Bd5 {[%clk 0:00:19]}  Kb8 {[%clk 0:00:05]} 47. Kc6 {[%clk 0:00:18]}  Ka7 {[%clk 0:00:05]} 48. Kb5 {[%clk 0:00:19]}  Kb8 {[%clk 0:00:04]} 49. Kb6 {[%clk 0:00:18]}  Kc8 {[%clk 0:00:04]} 50. Kc6 {[%clk 0:00:17]}  Kd8 {[%clk 0:00:05]} 51. Kd6 {[%clk 0:00:18]}  Bf4+ {[%clk 0:00:05]} 52. Kc5 {[%clk 0:00:15]}  Bd2 {[%clk 0:00:04]} 53. Kd6 {[%clk 0:00:16]}  Bc3 {[%clk 0:00:04]} 54. Bb3 {[%clk 0:00:14]}  Ke8 {[%clk 0:00:03]} 55. Ke6 {[%clk 0:00:14]}  Kf8 {[%clk 0:00:04]} 56. Bc4 {[%clk 0:00:13]}  Kg7 {[%clk 0:00:04]} 57. Kf5 {[%clk 0:00:12]}  Bd4 {[%clk 0:00:02]} 58. Bb3 {[%clk 0:00:13]}  Be5 {[%clk 0:00:03]} 59. Bc4 {[%clk 0:00:13]}  Bc3 {[%clk 0:00:03]} 60. Bb3 {[%clk 0:00:13]}  Ba1 {[%clk 0:00:04]} 61. Ba2 {[%clk 0:00:13]}  Bb2 {[%clk 0:00:05]} 62. Bb3 {[%clk 0:00:14]}  Ba3 {[%clk 0:00:05]} 63. Ba2 {[%clk 0:00:13]}  Bb2 {[%clk 0:00:05]} 64. Bb3 {[%clk 0:00:14]}  Kf8 {[%clk 0:00:05]} 65. Ke6 {[%clk 0:00:14]}  Kg7 {[%clk 0:00:05]} 66. Kf5 {[%clk 0:00:15]} 1/2-1/2


[Site "https://www.chess.com"]

[Event "Titled Tuesday Blitz November 07 Early 2023"]
[White "Csonka, Balazs"]
[Black "Kubicka, Anna"]
[WhiteFideId "742910"]
[BlackFideId "1152254"]
[WhiteElo "2751"]
[BlackElo "2519"]
[Result "1/2-1/2"]
[Round "11"]
[TimeControl "180+1"]
[Date "2023.11.07"]
[WhiteClock "0:00:04"]
[BlackClock "0:00:04"]
[Board "58"]

1. Nf3 {[%clk 0:03:00]}  Nf6 {[%clk 0:02:59]} 2. c4 {[%clk 0:02:58]}  g6 {[%clk 0:02:59]} 3. Nc3 {[%clk 0:02:58]}  Bg7 {[%clk 0:03:00]} 4. d4 {[%clk 0:02:55]}  O-O {[%clk 0:03:00]} 5. e4 {[%clk 0:02:55]}  d6 {[%clk 0:03:00]} 6. Be2 {[%clk 0:02:52]}  e5 {[%clk 0:02:59]} 7. O-O {[%clk 0:02:50]}  Nc6 {[%clk 0:02:59]} 8. d5 {[%clk 0:02:50]}  Ne7 {[%clk 0:02:59]} 9. Qc2 {[%clk 0:02:51]}  Ne8 {[%clk 0:02:56]} 10. Rd1 {[%clk 0:02:50]}  f5 {[%clk 0:02:56]} 11. Ng5 {[%clk 0:02:49]}  Kh8 {[%clk 0:02:42]} 12. b4 {[%clk 0:02:29]}  f4 {[%clk 0:02:35]} 13. Ne6 {[%clk 0:02:22]}  Bxe6 {[%clk 0:02:34]} 14. dxe6 {[%clk 0:02:22]}  Ng8 {[%clk 0:02:33]} 15. c5 {[%clk 0:02:15]}  Qe7 {[%clk 0:02:07]} 16. Qb3 {[%clk 0:01:46]}  dxc5 {[%clk 0:02:00]} 17. bxc5 {[%clk 0:01:32]}  c6 {[%clk 0:00:59]} 18. Rd7 {[%clk 0:01:22]}  Qh4 {[%clk 0:00:53]} 19. Rxb7 {[%clk 0:01:10]}  Nef6 {[%clk 0:00:41]} 20. Bd2 {[%clk 0:00:45]}  Ng4 {[%clk 0:00:33]} 21. Bxg4 {[%clk 0:00:45]}  Qxg4 {[%clk 0:00:34]} 22. f3 {[%clk 0:00:42]}  Qh4 {[%clk 0:00:31]} 23. Be1 {[%clk 0:00:40]}  Qg5 {[%clk 0:00:31]} 24. Rd1 {[%clk 0:00:35]}  Rae8 {[%clk 0:00:21]} 25. Rdd7 {[%clk 0:00:32]}  Re7 {[%clk 0:00:21]} 26. Rxa7 {[%clk 0:00:31]}  Rxd7 {[%clk 0:00:19]} 27. Rxd7 {[%clk 0:00:28]}  Nf6 {[%clk 0:00:14]} 28. e7 {[%clk 0:00:28]}  Nxd7 {[%clk 0:00:14]} 29. exf8=Q+ {[%clk 0:00:25]}  Nxf8 {[%clk 0:00:15]} 30. Bf2 {[%clk 0:00:23]}  Qe7 {[%clk 0:00:13]} 31. Qb8 {[%clk 0:00:17]}  h5 {[%clk 0:00:11]} 32. a4 {[%clk 0:00:17]}  Kh7 {[%clk 0:00:11]} 33. a5 {[%clk 0:00:18]}  Ne6 {[%clk 0:00:11]} 34. a6 {[%clk 0:00:18]}  Nxc5 {[%clk 0:00:11]} 35. a7 {[%clk 0:00:17]}  Nd7 {[%clk 0:00:11]} 36. a8=Q {[%clk 0:00:05]}  Nxb8 {[%clk 0:00:10]} 37. Qxb8 {[%clk 0:00:06]}  Qa3 {[%clk 0:00:10]} 38. Nd1 {[%clk 0:00:05]}  Qd3 {[%clk 0:00:09]} 39. h3 {[%clk 0:00:02]}  Qxd1+ {[%clk 0:00:09]} 40. Kh2 {[%clk 0:00:02]}  Qc2 {[%clk 0:00:08]} 41. Bh4 {[%clk 0:00:02]}  Qc5 {[%clk 0:00:07]} 42. Qc7 {[%clk 0:00:02]}  Kh6 {[%clk 0:00:03]} 43. Bd8 {[%clk 0:00:01]}  Qf8 {[%clk 0:00:03]} 44. Be7 {[%clk 0:00:01]}  Qe8 {[%clk 0:00:02]} 45. Bd6 {[%clk 0:00:01]}  Kh7 {[%clk 0:00:01]} 46. Bc5 {[%clk 0:00:01]}  Qe6 {[%clk 0:00:01]} 47. Bd6 {[%clk 0:00:02]}  Qf6 {[%clk 0:00:01]} 48. Qxc6 {[%clk 0:00:01]}  Qh4 {[%clk 0:00:01]} 49. Qd7 {[%clk 0:00:02]}  Qg3+ {[%clk 0:00:02]} 50. Kh1 {[%clk 0:00:02]}  Qe1+ {[%clk 0:00:03]} 51. Kh2 {[%clk 0:00:02]}  Qg3+ {[%clk 0:00:03]} 52. Kg1 {[%clk 0:00:03]}  Qe1+ {[%clk 0:00:04]} 53. Kh2 {[%clk 0:00:04]}  Qg3+ {[%clk 0:00:04]} 1/2-1/2


[Site "https://www.chess.com"]

[Event "Titled Tuesday Blitz November 07 Early 2023"]
[White "Halkias, Stelios"]
[Black "Reprintsev, Alexander"]
[WhiteFideId "4201809"]
[BlackFideId "14100541"]
[WhiteElo "2714"]
[BlackElo "2509"]
[Result "1-0"]
[Round "11"]
[TimeControl "180+1"]
[Date "2023.11.07"]
[WhiteClock "0:02:29"]
[BlackClock "0:01:59"]
[Board "59"]

1. Nf3 {[%clk 0:02:54]}  d5 {[%clk 0:02:53]} 2. d4 {[%clk 0:02:53]}  Nc6 {[%clk 0:02:52]} 3. Bf4 {[%clk 0:02:52]}  Bg4 {[%clk 0:02:51]} 4. e3 {[%clk 0:02:52]}  e6 {[%clk 0:02:52]} 5. Be2 {[%clk 0:02:52]}  Bd6 {[%clk 0:02:52]} 6. Bg3 {[%clk 0:02:52]}  f5 {[%clk 0:02:50]} 7. O-O {[%clk 0:02:52]}  Qf6 {[%clk 0:02:50]} 8. c4 {[%clk 0:02:51]}  f4 {[%clk 0:02:44]} 9. exf4 {[%clk 0:02:47]}  Bxf4 {[%clk 0:02:44]} 10. Nc3 {[%clk 0:02:45]}  O-O-O {[%clk 0:02:39]} 11. cxd5 {[%clk 0:02:44]}  exd5 {[%clk 0:02:39]} 12. Ne5 {[%clk 0:02:40]}  Bxe2 {[%clk 0:02:36]} 13. Qxe2 {[%clk 0:02:33]}  Nxd4 {[%clk 0:02:32]} 14. Qg4+ {[%clk 0:02:32]}  Ne6 {[%clk 0:02:15]} 15. Bxf4 {[%clk 0:02:30]}  h5 {[%clk 0:02:15]} 16. Qh3 {[%clk 0:02:30]}  g5 {[%clk 0:02:12]} 17. Bxg5 {[%clk 0:02:29]}  Qxe5 {[%clk 0:01:59]} 18. Bxd8 {[%clk 0:02:29]} 1-0


[Site "https://www.chess.com"]

[Event "Titled Tuesday Blitz November 07 Early 2023"]
[White "Melian, Juan Sebastian"]
[Black "Jovic, Stanoje"]
[WhiteFideId "3706575"]
[BlackFideId "905020"]
[WhiteElo "2658"]
[BlackElo "2459"]
[Result "1-0"]
[Round "11"]
[TimeControl "180+1"]
[Date "2023.11.07"]
[WhiteClock "0:00:06"]
[BlackClock "0:00:06"]
[Board "61"]

1. d4 {[%clk 0:02:57]}  Nf6 {[%clk 0:02:59]} 2. Bg5 {[%clk 0:02:57]}  c5 {[%clk 0:02:57]} 3. d5 {[%clk 0:02:56]}  Qb6 {[%clk 0:02:57]} 4. Nc3 {[%clk 0:02:56]}  Qxb2 {[%clk 0:02:57]} 5. Bd2 {[%clk 0:02:57]}  Qb6 {[%clk 0:02:56]} 6. e4 {[%clk 0:02:57]}  e5 {[%clk 0:02:56]} 7. Bc4 {[%clk 0:02:44]}  d6 {[%clk 0:02:54]} 8. Nge2 {[%clk 0:02:42]}  a6 {[%clk 0:02:54]} 9. a4 {[%clk 0:02:41]}  Qc7 {[%clk 0:02:50]} 10. O-O {[%clk 0:02:41]}  b6 {[%clk 0:02:49]} 11. f4 {[%clk 0:02:37]}  Bg4 {[%clk 0:02:47]} 12. h3 {[%clk 0:02:35]}  Bxe2 {[%clk 0:02:46]} 13. Qxe2 {[%clk 0:02:36]}  Be7 {[%clk 0:02:43]} 14. g4 {[%clk 0:02:30]}  O-O {[%clk 0:02:40]} 15. g5 {[%clk 0:02:28]}  Ne8 {[%clk 0:02:30]} 16. f5 {[%clk 0:02:27]}  Nd7 {[%clk 0:02:15]} 17. Kh2 {[%clk 0:02:12]}  Kh8 {[%clk 0:02:03]} 18. Bxa6 {[%clk 0:01:44]}  c4 {[%clk 0:01:59]} 19. Bxc4 {[%clk 0:01:37]}  Rc8 {[%clk 0:01:57]} 20. Bb5 {[%clk 0:01:37]}  Nb8 {[%clk 0:01:45]} 21. Rf3 {[%clk 0:01:33]}  Nd7 {[%clk 0:01:34]} 22. Rg1 {[%clk 0:01:21]}  Nc5 {[%clk 0:01:32]} 23. f6 {[%clk 0:01:08]}  gxf6 {[%clk 0:01:28]} 24. Bxe8 {[%clk 0:01:08]}  Rcxe8 {[%clk 0:01:05]} 25. gxf6 {[%clk 0:01:06]}  Bd8 {[%clk 0:01:00]} 26. Bh6 {[%clk 0:00:59]}  Rg8 {[%clk 0:00:59]} 27. Bg7+ {[%clk 0:00:53]}  Rxg7 {[%clk 0:00:59]} 28. Rxg7 {[%clk 0:00:24]}  Bxf6 {[%clk 0:00:53]} 29. Rg4 {[%clk 0:00:23]}  Bg7 {[%clk 0:00:50]} 30. Rh4 {[%clk 0:00:18]}  Qe7 {[%clk 0:00:45]} 31. Rh5 {[%clk 0:00:15]}  Rg8 {[%clk 0:00:42]} 32. Rg3 {[%clk 0:00:15]}  Qf6 {[%clk 0:00:37]} 33. Qf3 {[%clk 0:00:12]}  Qxf3 {[%clk 0:00:34]} 34. Rxf3 {[%clk 0:00:13]}  f6 {[%clk 0:00:31]} 35. Rh4 {[%clk 0:00:09]}  Rc8 {[%clk 0:00:30]} 36. Nb5 {[%clk 0:00:09]}  Nb7 {[%clk 0:00:28]} 37. Rc3 {[%clk 0:00:09]}  Ra8 {[%clk 0:00:25]} 38. Rc7 {[%clk 0:00:06]}  Nc5 {[%clk 0:00:23]} 39. Nxd6 {[%clk 0:00:06]}  f5 {[%clk 0:00:18]} 40. Nxf5 {[%clk 0:00:05]}  Rg8 {[%clk 0:00:15]} 41. Rg4 {[%clk 0:00:05]}  Nxe4 {[%clk 0:00:15]} 42. Rgxg7 {[%clk 0:00:04]}  Rxg7 {[%clk 0:00:14]} 43. Nxg7 {[%clk 0:00:04]}  Nd6 {[%clk 0:00:13]} 44. Ne6 {[%clk 0:00:04]}  h5 {[%clk 0:00:12]} 45. Rc8+ {[%clk 0:00:04]}  Kh7 {[%clk 0:00:12]} 46. Rd8 {[%clk 0:00:04]}  Nf5 {[%clk 0:00:12]} 47. d6 {[%clk 0:00:04]}  e4 {[%clk 0:00:12]} 48. d7 {[%clk 0:00:04]}  e3 {[%clk 0:00:12]} 49. Rh8+ {[%clk 0:00:04]}  Kxh8 {[%clk 0:00:12]} 50. d8=Q+ {[%clk 0:00:05]}  Kh7 {[%clk 0:00:12]} 51. Qd7+ {[%clk 0:00:05]}  Kg6 {[%clk 0:00:12]} 52. Nd4 {[%clk 0:00:05]}  Nh4 {[%clk 0:00:11]} 53. Qe6+ {[%clk 0:00:04]}  Kg5 {[%clk 0:00:11]} 54. Qe5+ {[%clk 0:00:04]}  Kg6 {[%clk 0:00:11]} 55. Kg3 {[%clk 0:00:04]}  e2 {[%clk 0:00:09]} 56. Kxh4 {[%clk 0:00:04]}  e1=Q+ {[%clk 0:00:08]} 57. Qxe1 {[%clk 0:00:05]}  Kf6 {[%clk 0:00:08]} 58. Qe6+ {[%clk 0:00:06]}  Kg7 {[%clk 0:00:08]} 59. Nf5+ {[%clk 0:00:06]}  Kh8 {[%clk 0:00:07]} 60. Qf7 {[%clk 0:00:05]}  b5 {[%clk 0:00:06]} 61. Qg7# {[%clk 0:00:06]} 1-0


[Site "https://www.chess.com"]

[Event "Titled Tuesday Blitz November 07 Early 2023"]
[White "Golubev, Mikhail"]
[Black "Bashirli, Saadat"]
[WhiteFideId "14100983"]
[BlackFideId "13429990"]
[WhiteElo "2619"]
[BlackElo "2443"]
[Result "1-0"]
[Round "11"]
[TimeControl "180+1"]
[Date "2023.11.07"]
[WhiteClock "0:00:13"]
[BlackClock "0:00:14"]
[Board "63"]

1. e4 {[%clk 0:03:00]}  c6 {[%clk 0:02:56]} 2. Nf3 {[%clk 0:02:59]}  d5 {[%clk 0:02:56]} 3. Nc3 {[%clk 0:02:59]}  dxe4 {[%clk 0:02:55]} 4. Nxe4 {[%clk 0:02:59]}  Nf6 {[%clk 0:02:56]} 5. Qe2 {[%clk 0:02:59]}  Nxe4 {[%clk 0:02:53]} 6. Qxe4 {[%clk 0:03:00]}  g6 {[%clk 0:02:52]} 7. Qe5 {[%clk 0:02:35]}  f6 {[%clk 0:02:51]} 8. Qe3 {[%clk 0:02:35]}  Qd5 {[%clk 0:02:42]} 9. d4 {[%clk 0:02:35]}  Bg7 {[%clk 0:02:32]} 10. c4 {[%clk 0:02:35]}  Qe6 {[%clk 0:02:30]} 11. Be2 {[%clk 0:02:29]}  Qxe3 {[%clk 0:02:26]} 12. Bxe3 {[%clk 0:02:28]}  Be6 {[%clk 0:02:24]} 13. O-O-O {[%clk 0:02:27]}  Nd7 {[%clk 0:02:19]} 14. Rhe1 {[%clk 0:01:59]}  O-O {[%clk 0:02:16]} 15. h3 {[%clk 0:01:48]}  Nb6 {[%clk 0:02:15]} 16. b3 {[%clk 0:01:48]}  Bf7 {[%clk 0:02:14]} 17. Kb1 {[%clk 0:01:41]}  Rad8 {[%clk 0:02:10]} 18. Rd2 {[%clk 0:01:34]}  Rfe8 {[%clk 0:02:07]} 19. Bd3 {[%clk 0:01:29]}  e5 {[%clk 0:01:34]} 20. dxe5 {[%clk 0:01:27]}  fxe5 {[%clk 0:01:34]} 21. Bc2 {[%clk 0:01:18]}  Rxd2 {[%clk 0:01:01]} 22. Nxd2 {[%clk 0:01:17]}  Rd8 {[%clk 0:00:57]} 23. Ne4 {[%clk 0:01:15]}  Be6 {[%clk 0:00:51]} 24. g4 {[%clk 0:01:13]}  Rf8 {[%clk 0:00:44]} 25. Rd1 {[%clk 0:01:10]}  Rf3 {[%clk 0:00:34]} 26. Ng5 {[%clk 0:01:08]}  Rf6 {[%clk 0:00:32]} 27. Rd8+ {[%clk 0:00:59]}  Bf8 {[%clk 0:00:30]} 28. Bc5 {[%clk 0:00:31]}  Nd7 {[%clk 0:00:28]} 29. Be7 {[%clk 0:00:18]}  Bf7 {[%clk 0:00:11]} 30. Bxf6 {[%clk 0:00:17]}  Nxf6 {[%clk 0:00:12]} 31. Nxf7 {[%clk 0:00:17]}  Kxf7 {[%clk 0:00:12]} 32. Rb8 {[%clk 0:00:16]}  b6 {[%clk 0:00:10]} 33. Rb7+ {[%clk 0:00:16]}  Ke6 {[%clk 0:00:10]} 34. Rxa7 {[%clk 0:00:16]}  Bc5 {[%clk 0:00:10]} 35. f3 {[%clk 0:00:16]}  Nd7 {[%clk 0:00:09]} 36. Be4 {[%clk 0:00:16]}  Kd6 {[%clk 0:00:08]} 37. Kc2 {[%clk 0:00:15]}  Bd4 {[%clk 0:00:07]} 38. a3 {[%clk 0:00:14]}  b5 {[%clk 0:00:05]} 39. Ra6 {[%clk 0:00:14]}  Nb8 {[%clk 0:00:04]} 40. Ra8 {[%clk 0:00:13]}  Kc7 {[%clk 0:00:04]} 41. cxb5 {[%clk 0:00:13]}  cxb5 {[%clk 0:00:02]} 42. a4 {[%clk 0:00:13]}  bxa4 {[%clk 0:00:02]} 43. bxa4 {[%clk 0:00:13]}  Bb6 {[%clk 0:00:03]} 44. a5 {[%clk 0:00:13]}  Bd4 {[%clk 0:00:02]} 45. a6 {[%clk 0:00:13]}  Bb6 {[%clk 0:00:03]} 46. a7 {[%clk 0:00:12]}  Nd7 {[%clk 0:00:03]} 47. Rc8+ {[%clk 0:00:12]}  Kxc8 {[%clk 0:00:02]} 48. a8=Q+ {[%clk 0:00:11]}  Kc7 {[%clk 0:00:03]} 49. Qb7+ {[%clk 0:00:12]}  Kd6 {[%clk 0:00:04]} 50. Bc6 {[%clk 0:00:12]}  Nc5 {[%clk 0:00:04]} 51. Qxb6 {[%clk 0:00:11]}  Ne6 {[%clk 0:00:04]} 52. Be4+ {[%clk 0:00:09]}  Ke7 {[%clk 0:00:04]} 53. Kc3 {[%clk 0:00:09]}  Nd4 {[%clk 0:00:04]} 54. Qxd4 {[%clk 0:00:09]}  exd4+ {[%clk 0:00:05]} 55. Kxd4 {[%clk 0:00:09]}  Ke6 {[%clk 0:00:06]} 56. f4 {[%clk 0:00:09]}  Kf6 {[%clk 0:00:06]} 57. g5+ {[%clk 0:00:10]}  Ke6 {[%clk 0:00:07]} 58. Bd5+ {[%clk 0:00:10]}  Kf5 {[%clk 0:00:08]} 59. Ke3 {[%clk 0:00:09]}  h5 {[%clk 0:00:07]} 60. Be4+ {[%clk 0:00:07]}  Ke6 {[%clk 0:00:07]} 61. Bxg6 {[%clk 0:00:08]}  Ke7 {[%clk 0:00:08]} 62. Bxh5 {[%clk 0:00:08]}  Kf8 {[%clk 0:00:08]} 63. Bg4 {[%clk 0:00:09]}  Kg7 {[%clk 0:00:09]} 64. h4 {[%clk 0:00:10]}  Kg8 {[%clk 0:00:10]} 65. h5 {[%clk 0:00:10]}  Kh8 {[%clk 0:00:11]} 66. f5 {[%clk 0:00:11]}  Kg7 {[%clk 0:00:11]} 67. f6+ {[%clk 0:00:11]}  Kh8 {[%clk 0:00:12]} 68. Be6 {[%clk 0:00:11]}  Kh7 {[%clk 0:00:13]} 69. g6+ {[%clk 0:00:11]}  Kh8 {[%clk 0:00:13]} 70. g7+ {[%clk 0:00:11]}  Kh7 {[%clk 0:00:14]} 71. g8=Q+ {[%clk 0:00:12]}  Kh6 {[%clk 0:00:14]} 72. Qg6# {[%clk 0:00:13]} 1-0


[Site "https://www.chess.com"]

[Event "Titled Tuesday Blitz November 07 Early 2023"]
[White "Tregubov, Pavel V."]
[Black "FuenfgegenWilly"]
[WhiteFideId "4115341"]
[WhiteElo "2615"]
[BlackElo "2410"]
[Result "1-0"]
[Round "11"]
[TimeControl "180+1"]
[Date "2023.11.07"]
[WhiteClock "0:00:06"]
[BlackClock "0:00:12"]
[Board "65"]

1. e4 {[%clk 0:03:00]}  c5 {[%clk 0:02:59]} 2. Nf3 {[%clk 0:02:58]}  e6 {[%clk 0:03:00]} 3. c3 {[%clk 0:02:57]}  d5 {[%clk 0:02:58]} 4. e5 {[%clk 0:02:56]}  d4 {[%clk 0:02:56]} 5. d3 {[%clk 0:02:57]}  Nc6 {[%clk 0:02:56]} 6. g3 {[%clk 0:02:57]}  Nge7 {[%clk 0:02:49]} 7. Bg2 {[%clk 0:02:57]}  Ng6 {[%clk 0:02:50]} 8. Qe2 {[%clk 0:02:56]}  Be7 {[%clk 0:02:50]} 9. O-O {[%clk 0:02:56]}  O-O {[%clk 0:02:50]} 10. h4 {[%clk 0:02:55]}  f6 {[%clk 0:02:42]} 11. exf6 {[%clk 0:02:49]}  Bxf6 {[%clk 0:02:36]} 12. c4 {[%clk 0:02:40]}  e5 {[%clk 0:02:33]} 13. Nbd2 {[%clk 0:02:40]}  Bg4 {[%clk 0:02:21]} 14. a3 {[%clk 0:02:22]}  Qd7 {[%clk 0:02:18]} 15. Qe1 {[%clk 0:02:16]}  a5 {[%clk 0:01:54]} 16. Ne4 {[%clk 0:02:12]}  Be7 {[%clk 0:01:54]} 17. Nh2 {[%clk 0:02:05]}  Bh3 {[%clk 0:01:50]} 18. h5 {[%clk 0:02:01]}  Nh8 {[%clk 0:01:34]} 19. h6 {[%clk 0:02:00]}  g6 {[%clk 0:01:29]} 20. Qe2 {[%clk 0:01:35]}  Bxg2 {[%clk 0:01:24]} 21. Kxg2 {[%clk 0:01:35]}  Nf7 {[%clk 0:01:25]} 22. Ng4 {[%clk 0:01:29]}  Nd6 {[%clk 0:01:24]} 23. Nxc5 {[%clk 0:01:19]}  Qf5 {[%clk 0:01:22]} 24. Ne4 {[%clk 0:01:12]}  Nxe4 {[%clk 0:01:07]} 25. Qxe4 {[%clk 0:01:11]}  Qxe4+ {[%clk 0:01:07]} 26. dxe4 {[%clk 0:01:11]}  a4 {[%clk 0:01:08]} 27. Bd2 {[%clk 0:01:11]}  Bd6 {[%clk 0:01:00]} 28. f4 {[%clk 0:00:58]}  exf4 {[%clk 0:00:45]} 29. gxf4 {[%clk 0:00:57]}  Rac8 {[%clk 0:00:45]} 30. Rac1 {[%clk 0:00:49]}  Nd8 {[%clk 0:00:42]} 31. e5 {[%clk 0:00:44]}  Be7 {[%clk 0:00:41]} 32. Bb4 {[%clk 0:00:42]}  Bxb4 {[%clk 0:00:32]} 33. axb4 {[%clk 0:00:42]}  Ne6 {[%clk 0:00:33]} 34. Nf6+ {[%clk 0:00:42]}  Kh8 {[%clk 0:00:33]} 35. Kf3 {[%clk 0:00:39]}  Rc7 {[%clk 0:00:26]} 36. Ke4 {[%clk 0:00:37]}  Rfc8 {[%clk 0:00:27]} 37. c5 {[%clk 0:00:37]}  b6 {[%clk 0:00:26]} 38. Kd5 {[%clk 0:00:29]}  Rc6 {[%clk 0:00:26]} 39. Ne4 {[%clk 0:00:21]}  bxc5 {[%clk 0:00:18]} 40. Nd6 {[%clk 0:00:16]}  R8c7 {[%clk 0:00:17]} 41. Kxe6 {[%clk 0:00:15]}  c4 {[%clk 0:00:16]} 42. b5 {[%clk 0:00:09]}  a3 {[%clk 0:00:13]} 43. bxc6 {[%clk 0:00:06]}  axb2 {[%clk 0:00:12]} 44. Rxc4 {[%clk 0:00:06]} 1-0


[Site "https://www.chess.com"]

[Event "Titled Tuesday Blitz November 07 Early 2023"]
[White "Dishman, Stephen"]
[Black "GatoRojo150"]
[WhiteFideId "403024"]
[WhiteElo "2394"]
[BlackElo "2608"]
[Result "0-1"]
[Round "11"]
[TimeControl "180+1"]
[Date "2023.11.07"]
[WhiteClock "0:00:29"]
[BlackClock "0:01:07"]
[Board "66"]

1. d4 {[%clk 0:03:00]}  d5 {[%clk 0:02:59]} 2. c4 {[%clk 0:03:00]}  dxc4 {[%clk 0:03:00]} 3. Nf3 {[%clk 0:02:59]}  Nf6 {[%clk 0:03:00]} 4. e3 {[%clk 0:02:59]}  Bg4 {[%clk 0:03:00]} 5. Bxc4 {[%clk 0:02:58]}  e6 {[%clk 0:03:01]} 6. h3 {[%clk 0:02:58]}  Bh5 {[%clk 0:03:00]} 7. Nc3 {[%clk 0:02:57]}  Nc6 {[%clk 0:03:00]} 8. g4 {[%clk 0:02:52]}  Bg6 {[%clk 0:03:00]} 9. h4 {[%clk 0:02:42]}  Bb4 {[%clk 0:02:36]} 10. h5 {[%clk 0:02:18]}  Be4 {[%clk 0:02:35]} 11. g5 {[%clk 0:02:13]}  Nd5 {[%clk 0:02:31]} 12. Bd2 {[%clk 0:02:12]}  Bxc3 {[%clk 0:02:29]} 13. bxc3 {[%clk 0:02:11]}  h6 {[%clk 0:02:10]} 14. g6 {[%clk 0:02:03]}  Qf6 {[%clk 0:02:10]} 15. gxf7+ {[%clk 0:01:57]}  Qxf7 {[%clk 0:02:10]} 16. Be2 {[%clk 0:01:53]}  O-O {[%clk 0:02:06]} 17. Rh3 {[%clk 0:01:53]}  e5 {[%clk 0:01:57]} 18. Qb3 {[%clk 0:01:49]}  exd4 {[%clk 0:01:53]} 19. cxd4 {[%clk 0:01:47]}  Kh8 {[%clk 0:01:49]} 20. O-O-O {[%clk 0:01:45]}  a5 {[%clk 0:01:42]} 21. Rg1 {[%clk 0:01:42]}  Ncb4 {[%clk 0:01:27]} 22. a4 {[%clk 0:01:16]}  Ra6 {[%clk 0:01:19]} 23. Rhg3 {[%clk 0:01:14]}  Rc6+ {[%clk 0:01:13]} 24. Kb2 {[%clk 0:01:04]}  Rc2+ {[%clk 0:01:11]} 25. Ka3 {[%clk 0:00:52]}  Ra2+ {[%clk 0:01:06]} 26. Qxa2 {[%clk 0:00:51]}  Nxa2 {[%clk 0:01:07]} 27. Rxg7 {[%clk 0:00:43]}  Qxg7 {[%clk 0:01:07]} 28. Rxg7 {[%clk 0:00:41]}  Kxg7 {[%clk 0:01:08]} 29. Kxa2 {[%clk 0:00:29]}  Bxf3 {[%clk 0:01:07]} 0-1


[Site "https://www.chess.com"]